Workbook

Sheet LCC
A1: Lönsamhetsberäkningar med hjälp av LCC och återbetalningstid
B3: Generella indata
B5: Kalkylperiod (år) | C5: 20
B6: Kalkylränta (%) | C6: 0.05
A8: <- Tror du att energipriserna kommer att förändras? Tryck på plus för att ange energiprisförändring <- | B8: Energislag 1 | C8: El
B9: Energipris energislag (kr/kWh) | C9: 1
B10: Förväntad real årlig energiprisförändring (%)
B11: Energislag 2
B12: Energipris energislag (kr/kWh)
B13: Förväntad real årlig energiprisförändring (%)
B14: Energislag 3
B15: Energipris energislag (kr/kWh)
B16: Förväntad real årlig energiprisförändring (%)
B18: Nusummefaktor | C18: =IF($C$6=0,$C$5,(1-(1+$C$6)^-$C$5)/$C$6) -> 12.46221034
B19: Nusummefaktor energislag 1 | C19: =IF($C$6=$C$10,$C$5,((1-((1+$C$10)/(1+$C$6))^$C$5)/((1+$C$6)/(1+$C$10)-1))) -> 12.46221034
B20: Nusummefaktor energislag 2 | C20: =IF($C$6=$C$13,$C$5,((1-((1+$C$13)/(1+$C$6))^$C$5)/((1+$C$6)/(1+$C$13)-1))) -> 12.46221034
B21: Nusummefaktor energislag 3 | C21: =IF($C$6=$C$16,$C$5,((1-((1+$C$16)/(1+$C$6))^$C$5)/((1+$C$6)/(1+$C$16)-1))) -> 12.46221034
B23: Data för olika åtgärder/utrustningsalternativ
C24: Alt A | D24: Alt B | E24: Alt C
B25: Åtgärd/utrustningsalternativ | C25: Ex ingen åtgärd
B26: Investeringskostnad (kr)
B28: Årligt energibehov, energislag 1 (kWh)
B29: Årligt energibehov, energislag 2 (kWh)
B30: Årligt energibehov, energislag 3 (kWh)
B32: Drift- och underhållskostnad (kr/år)
B33: Underhållskostnad år 1 | F33: =(1+$C$6)^-1 -> 0.9523809524
B34: år 2 | F34: =(1+$C$6)^-2 -> 0.9070294785
B35: 3 | F35: =(1+$C$6)^-B35 -> 0.8638375985
B36: 4 | F36: =(1+$C$6)^-B36 -> 0.8227024748
B37: 5 | F37: 0.7835261665
B38: 6 | F38: 0.7462153966
B39: 7 | F39: 0.7106813301
B40: 8 | F40: 0.676839362
B41: 9 | F41: 0.6446089162
B42: 10 | F42: 0.6139132535
B43: 11 | F43: 0.5846792891
B44: 12 | F44: 0.5568374182
B45: 13 | F45: 0.5303213506
B46: 14 | F46: 0.505067953
B47: 15 | F47: 0.4810170981
B48: 16 | F48: 0.458111522
B49: 17 | F49: 0.4362966876
B50: 18 | F50: =(1+$C$6)^-B50 -> 0.4155206549
B51: 19 | F51: 0.395733957
B52: 20 | F52: 0.3768894829
B53: 21 | F53: 0.3589423646
B54: 22 | F54: 0.3418498711
B55: 23 | F55: 0.3255713058
B56: 24 | F56: 0.3100679103
B57: 25 | F57: 0.2953027717
B58: 26 | F58: 0.281240735
B59: 27 | F59: 0.267848319
B60: 28 | F60: 0.2550936371
B61: 29 | F61: 0.2429463211
B62: 30 | F62: 0.2313774487
A63: <- Tryck på plus för att ange kostnader för enskilda år
B64: Övriga årliga kostnader (kr/år)
B65: Övriga kostnader år 1 | F65: =(1+$C$6)^-1 -> 0.9523809524
B66: år 2 | F66: =(1+$C$6)^-2 -> 0.9070294785
B67: 3 | F67: =(1+$C$6)^-B67 -> 0.8638375985
B68: 4 | F68: =(1+$C$6)^-B68 -> 0.8227024748
B69: 5 | F69: 0.7835261665
B70: 6 | F70: 0.7462153966
B71: 7 | F71: 0.7106813301
B72: 8 | F72: 0.676839362
B73: 9 | F73: 0.6446089162
B74: 10 | F74: 0.6139132535
B75: 11 | F75: 0.5846792891
B76: 12 | F76: 0.5568374182
B77: 13 | F77: 0.5303213506
B78: 14 | F78: 0.505067953
B79: 15 | F79: 0.4810170981
B80: 16 | F80: 0.458111522
B81: 17 | F81: 0.4362966876
B82: 18 | F82: 0.4155206549
B83: 19 | F83: 0.395733957
B84: 20 | F84: 0.3768894829
B85: 21 | F85: 0.3589423646
B86: 22 | F86: 0.3418498711
B87: 23 | F87: 0.3255713058
B88: 24 | F88: 0.3100679103
B89: 25 | F89: 0.2953027717
B90: 26 | F90: 0.281240735
B91: 27 | F91: 0.267848319
B92: 28 | F92: 0.2550936371
B93: 29 | F93: 0.2429463211
B94: 30 | F94: 0.2313774487
A95: <- Tryck på plus för att ange kostnader för enskilda år
B96: Restvärde (kr)
B98: Beräkningar och resultat
C99: Alt A | D99: Alt B | E99: Alt C
B100: Nuvärde investering minus restvärde (kr) | C100: =C26-C96*(1+$C$6)^-$C$5 -> 0 | D100: =D26-D96*(1+$C$6)^-$C$5 -> 0 | E100: =E26-E96*(1+$C$6)^-$C$5 -> 0 | F100: Investering minus restvärde
B101: Nuvärde drift- och underhållskostnader (kr) | C101: =C32*$C$18+SUMPRODUCT(C33:C62,$F$33:$F$62) -> 0 | D101: =D32*$C$18+SUMPRODUCT(D33:D62,$F$33:$F$62) -> 0 | E101: =E32*$C$18+SUMPRODUCT(E33:E62,$F$33:$F$62) -> 0 | F101: Drift- och underhållskostnader
B102: Nuvärde övriga kostnader (kr) | C102: =C64*$C$18+SUMPRODUCT(C65:C94,$F$65:$F$94) -> 0 | D102: =D64*$C$18+SUMPRODUCT(D65:D94,$F$65:$F$94) -> 0 | E102: =E64*$C$18+SUMPRODUCT(E65:E94,$F$65:$F$94) -> 0 | F102: Övriga kostnader
B103: Nuvärde energikostnader (kr) | C103: =C28*$C$9*$C$19+C29*$C$12*$C$20+C30*$C$15*$C$21 -> 0 | D103: =D28*$C$9*$C$19+D29*$C$12*$C$20+D30*$C$15*$C$21 -> 0 | E103: =E28*$C$9*$C$19+E29*$C$12*$C$20+E30*$C$15*$C$21 -> 0 | F103: Energikostnader
B104: Livscykelkostnad, LCC (kr) | C104: =SUM(C100:C103) -> 0 | D104: =IF(SUM(D100:D103)=0,"-",SUM(D100:D103)) -> - | E104: =IF(SUM(E100:E103)=0,"-",SUM(E100:E103)) -> -
B107: Lönsamhetsbedömning av åtgärd B och C (jämfört mot Alt A)
B108: Rak återbetalningstid, payoff (år) | D108: =IF(AND(D26>$C$26,(D28-$C$28)*$C$9+(D29-$C$29)*$C$12+(D30-$C$30)*$C$15+(D32-$C$32)+(D64-$C$64)>0),"återbetalas ej",IF(OR(D104="-",D26<$C$26),"-",(D26-$C$26)/(($C$28-D28)*$C$9+($C$29-D29)*$C$12+($C$30-D30)*$C$15+($C$32-D32)+($C$64-D64)))) -> - | E108: =IF(AND(E26>$C$26,(E28-$C$28)*$C$9+(E29-$C$29)*$C$12+(E30-$C$30)*$C$15+(E32-$C$32)+(E64-$C$64)>0),"återbetalas ej",IF(OR(E104="-",E26<$C$26),"-",(E26-$C$26)/(($C$28-E28)*$C$9+($C$29-E29)*$C$12+($C$30-E30)*$C$15+($C$32-E32)+($C$64-E64)))) -> -
B109: Nettonuvärde av investering, Minskning LCC (kr) | D109: =IF(D104="-","-",C104-D104) -> - | E109: =IF(E104="-","-",C104-E104) -> -
B110: =IF(OR(AND(ISNUMBER(D104),D26<C26),AND(ISNUMBER(E104),E26<C26)),"!!! För att uträkningen av återbetalningstid ska ge ett meningsfullt resultat behöver Alt A vara det alternativ som har lägst investeringskostnad !!!","") -> 
B112: Summering av resultat
B113: Av Alt A, B och C har | C113: =IF(SMALL(C104:E104,1)=C104,C24,IF(D104<E104,D24,E24)) -> Alt A | D113: lägst LCC-kostnad
B116: Jämförelse LCC
B132: Jämförelse Återbetalningstid
B147: Känslighetsanalys
F149: Alt A | G149: Alt B
E150: 0.001 | F150: =C$26-C$96*(1+$E150)^-$C$5+C$32*$J174+SUMPRODUCT(C$33:C$62,$O$174:$O$203)+C$64*$J174+SUMPRODUCT(C$65:C$94,$O$174:$O$203)+C$28*$C$9*$K174+C$29*$C$12*$L174+C$30*$C$15*$M174 -> 0 | G150: =D$26-D$96*(1+$E150)^-$C$5+D$32*$J174+SUMPRODUCT(D$33:D$62,$O$174:$O$203)+D$64*$J174+SUMPRODUCT(D$65:D$94,$O$174:$O$203)+D$28*$C$9*$K174+D$29*$C$12*$L174+D$30*$C$15*$M174 -> 0
E151: 0.02 | F151: =C$26-C$96*(1+$E151)^-$C$5+C$32*$J175+SUMPRODUCT(C$33:C$62,$P$174:$P$203)+C$64*$J175+SUMPRODUCT(C$65:C$94,$P$174:$P$203)+C$28*$C$9*$K175+C$29*$C$12*$L175+C$30*$C$15*$M175 -> 0 | G151: =D$26-D$96*(1+$E151)^-$C$5+D$32*$J175+SUMPRODUCT(D$33:D$62,$P$174:$P$203)+D$64*$J175+SUMPRODUCT(D$65:D$94,$P$174:$P$203)+D$28*$C$9*$K175+D$29*$C$12*$L175+D$30*$C$15*$M175 -> 0
E152: 0.04 | F152: =C$26-C$96*(1+$E152)^-$C$5+C$32*$J176+SUMPRODUCT(C$33:C$62,$Q$174:$Q$203)+C$64*$J176+SUMPRODUCT(C$65:C$94,$Q$174:$Q$203)+C$28*$C$9*$K176+C$29*$C$12*$L176+C$30*$C$15*$M176 -> 0 | G152: =D$26-D$96*(1+$E152)^-$C$5+D$32*$J176+SUMPRODUCT(D$33:D$62,$Q$174:$Q$203)+D$64*$J176+SUMPRODUCT(D$65:D$94,$Q$174:$Q$203)+D$28*$C$9*$K176+D$29*$C$12*$L176+D$30*$C$15*$M176 -> 0
E153: 0.06 | F153: =C$26-C$96*(1+$E153)^-$C$5+C$32*$J177+SUMPRODUCT(C$33:C$62,$R$174:$R$203)+C$64*$J177+SUMPRODUCT(C$65:C$94,$R$174:$R$203)+C$28*$C$9*$K177+C$29*$C$12*$L177+C$30*$C$15*$M177 -> 0 | G153: =D$26-D$96*(1+$E153)^-$C$5+D$32*$J177+SUMPRODUCT(D$33:D$62,$R$174:$R$203)+D$64*$J177+SUMPRODUCT(D$65:D$94,$R$174:$R$203)+D$28*$C$9*$K177+D$29*$C$12*$L177+D$30*$C$15*$M177 -> 0
E154: 0.08 | F154: =C$26-C$96*(1+$E154)^-$C$5+C$32*$J178+SUMPRODUCT(C$33:C$62,$S$174:$S$203)+C$64*$J178+SUMPRODUCT(C$65:C$94,$S$174:$S$203)+C$28*$C$9*$K178+C$29*$C$12*$L178+C$30*$C$15*$M178 -> 0 | G154: =D$26-D$96*(1+$E154)^-$C$5+D$32*$J178+SUMPRODUCT(D$33:D$62,$S$174:$S$203)+D$64*$J178+SUMPRODUCT(D$65:D$94,$S$174:$S$203)+D$28*$C$9*$K178+D$29*$C$12*$L178+D$30*$C$15*$M178 -> 0
E155: 0.1 | F155: =C$26-C$96*(1+$E155)^-$C$5+C$32*$J179+SUMPRODUCT(C$33:C$62,$T$174:$T$203)+C$64*$J179+SUMPRODUCT(C$65:C$94,$T$174:$T$203)+C$28*$C$9*$K179+C$29*$C$12*$L179+C$30*$C$15*$M179 -> 0 | G155: =D$26-D$96*(1+$E155)^-$C$5+D$32*$J179+SUMPRODUCT(D$33:D$62,$T$174:$T$203)+D$64*$J179+SUMPRODUCT(D$65:D$94,$T$174:$T$203)+D$28*$C$9*$K179+D$29*$C$12*$L179+D$30*$C$15*$M179 -> 0
E156: 0.12 | F156: =C$26-C$96*(1+$E156)^-$C$5+C$32*$J180+SUMPRODUCT(C$33:C$62,$U$174:$U$203)+C$64*$J180+SUMPRODUCT(C$65:C$94,$U$174:$U$203)+C$28*$C$9*$K180+C$29*$C$12*$L180+C$30*$C$15*$M180 -> 0 | G156: =D$26-D$96*(1+$E156)^-$C$5+D$32*$J180+SUMPRODUCT(D$33:D$62,$U$174:$U$203)+D$64*$J180+SUMPRODUCT(D$65:D$94,$U$174:$U$203)+D$28*$C$9*$K180+D$29*$C$12*$L180+D$30*$C$15*$M180 -> 0
E157: 0.14 | F157: =C$26-C$96*(1+$E157)^-$C$5+C$32*$J181+SUMPRODUCT(C$33:C$62,$V$174:$V$203)+C$64*$J181+SUMPRODUCT(C$65:C$94,$V$174:$V$203)+C$28*$C$9*$K181+C$29*$C$12*$L181+C$30*$C$15*$M181 -> 0 | G157: =D$26-D$96*(1+$E157)^-$C$5+D$32*$J181+SUMPRODUCT(D$33:D$62,$V$174:$V$203)+D$64*$J181+SUMPRODUCT(D$65:D$94,$V$174:$V$203)+D$28*$C$9*$K181+D$29*$C$12*$L181+D$30*$C$15*$M181 -> 0
B164: Testa gärna också att variera andra osäkra indata, t.ex. investeringskostnader eller energipriser!
H173: Alt C
H174: =E$26-E$96*(1+$E150)^-$C$5+E$32*$J174+SUMPRODUCT(E$33:E$62,$O$174:$O$203)+E$64*$J174+SUMPRODUCT(E$65:E$94,$O$174:$O$203)+E$28*$C$9*$K174+E$29*$C$12*$L174+E$30*$C$15*$M174 -> 0 | J174: =(1-(1+$E150)^-$C$5)/$E150 -> 19.79153119 | K174: =IF($E150=$C$10,$C$5,((1-((1+$C$10)/(1+$E150))^$C$5)/((1+$E150)/(1+$C$10)-1))) -> 19.79153119 | L174: =IF($E150=$C$13,$C$5,((1-((1+$C$13)/(1+$E150))^$C$5)/((1+$E150)/(1+$C$13)-1))) -> 19.79153119 | M174: =IF($E150=$C$16,$C$5,((1-((1+$C$16)/(1+$E150))^$C$5)/((1+$E150)/(1+$C$16)-1))) -> 19.79153119 | O174: =(1+$E$150)^-1 -> 0.999000999 | P174: =(1+$E$151)^-1 -> 0.9803921569 | Q174: =(1+$E$152)^-1 -> 0.9615384615 | R174: =(1+$E$153)^-1 -> 0.9433962264 | S174: =(1+$E$154)^-1 -> 0.9259259259 | T174: =(1+$E$155)^-1 -> 0.9090909091 | U174: =(1+$E$156)^-1 -> 0.8928571429 | V174: =(1+$E$157)^-1 -> 0.8771929825
H175: =E$26-E$96*(1+$E151)^-$C$5+E$32*$J175+SUMPRODUCT(E$33:E$62,$P$174:$P$203)+E$64*$J175+SUMPRODUCT(E$65:E$94,$P$174:$P$203)+E$28*$C$9*$K175+E$29*$C$12*$L175+E$30*$C$15*$M175 -> 0 | J175: 16.35143334 | K175: 16.35143334 | L175: 16.35143334 | M175: 16.35143334 | O175: =(1+$E$150)^-2 -> 0.998002996 | P175: =(1+$E$151)^-2 -> 0.9611687812 | Q175: =(1+$E$152)^-2 -> 0.924556213 | R175: =(1+$E$153)^-2 -> 0.88999644 | S175: =(1+$E$154)^-2 -> 0.8573388203 | T175: =(1+$E$155)^-2 -> 0.826446281 | U175: =(1+$E$156)^-2 -> 0.7971938776 | V175: =(1+$E$157)^-2 -> 0.7694675285
H176: =E$26-E$96*(1+$E152)^-$C$5+E$32*$J176+SUMPRODUCT(E$33:E$62,$Q$174:$Q$203)+E$64*$J176+SUMPRODUCT(E$65:E$94,$Q$174:$Q$203)+E$28*$C$9*$K176+E$29*$C$12*$L176+E$30*$C$15*$M176 -> 0 | J176: 13.59032634 | K176: 13.59032634 | L176: 13.59032634 | M176: 13.59032634 | O176: =(1+$E$150)^-$B35 -> 0.99700599 | P176: =(1+$E$151)^-$B35 -> 0.9423223345 | Q176: =(1+$E$152)^-$B35 -> 0.8889963587 | R176: =(1+$E$153)^-$B35 -> 0.839619283 | S176: =(1+$E$154)^-$B35 -> 0.793832241 | T176: =(1+$E$155)^-$B35 -> 0.7513148009 | U176: =(1+$E$156)^-$B35 -> 0.7117802478 | V176: =(1+$E$157)^-$B35 -> 0.6749715162
H177: =E$26-E$96*(1+$E153)^-$C$5+E$32*$J177+SUMPRODUCT(E$33:E$62,$R$174:$R$203)+E$64*$J177+SUMPRODUCT(E$65:E$94,$R$174:$R$203)+E$28*$C$9*$K177+E$29*$C$12*$L177+E$30*$C$15*$M177 -> 0 | J177: 11.46992122 | K177: 11.46992122 | L177: 11.46992122 | M177: 11.46992122 | O177: 0.99600998 | P177: 0.923845426 | Q177: 0.854804191 | R177: 0.7920936632 | S177: 0.7350298528 | T177: 0.6830134554 | U177: 0.6355180784 | V177: 0.5920802774
H178: =E$26-E$96*(1+$E154)^-$C$5+E$32*$J178+SUMPRODUCT(E$33:E$62,$S$174:$S$203)+E$64*$J178+SUMPRODUCT(E$65:E$94,$S$174:$S$203)+E$28*$C$9*$K178+E$29*$C$12*$L178+E$30*$C$15*$M178 -> 0 | J178: 9.818147407 | K178: 9.818147407 | L178: 9.818147407 | M178: 9.818147407 | O178: 0.9950149651 | P178: 0.9057308098 | Q178: 0.8219271068 | R178: 0.7472581729 | S178: 0.680583197 | T178: 0.6209213231 | U178: 0.5674268557 | V178: 0.5193686644
H179: =E$26-E$96*(1+$E155)^-$C$5+E$32*$J179+SUMPRODUCT(E$33:E$62,$T$174:$T$203)+E$64*$J179+SUMPRODUCT(E$65:E$94,$T$174:$T$203)+E$28*$C$9*$K179+E$29*$C$12*$L179+E$30*$C$15*$M179 -> 0 | J179: 8.51356372 | K179: 8.51356372 | L179: 8.51356372 | M179: 8.51356372 | O179: 0.9940209441 | P179: 0.8879713822 | Q179: 0.7903145257 | R179: 0.7049605404 | S179: 0.6301696269 | T179: 0.5644739301 | U179: 0.5066311212 | V179: 0.4555865477
H180: =E$26-E$96*(1+$E156)^-$C$5+E$32*$J180+SUMPRODUCT(E$33:E$62,$U$174:$U$203)+E$64*$J180+SUMPRODUCT(E$65:E$94,$U$174:$U$203)+E$28*$C$9*$K180+E$29*$C$12*$L180+E$30*$C$15*$M180 -> 0 | J180: 7.469443624 | K180: 7.469443624 | L180: 7.469443624 | M180: 7.469443624 | O180: 0.9930279162 | P180: 0.8705601786 | Q180: 0.7599178132 | R180: 0.6650571136 | S180: 0.5834903953 | T180: 0.5131581182 | U180: 0.4523492153 | V180: 0.3996373225
H181: =E$26-E$96*(1+$E157)^-$C$5+E$32*$J181+SUMPRODUCT(E$33:E$62,$V$174:$V$203)+E$64*$J181+SUMPRODUCT(E$65:E$94,$V$174:$V$203)+E$28*$C$9*$K181+E$29*$C$12*$L181+E$30*$C$15*$M181 -> 0 | J181: 6.623130552 | K181: 6.623130552 | L181: 6.623130552 | M181: 6.623130552 | O181: 0.9920358803 | P181: 0.8534903712 | Q181: 0.730690205 | R181: 0.6274123713 | S181: 0.5402688845 | T181: 0.4665073802 | U181: 0.403883228 | V181: 0.3505590549
O182: 0.9910448355 | P182: 0.8367552659 | Q182: 0.7025867356 | R182: 0.5918984635 | S182: 0.5002489671 | T182: 0.4240976184 | U182: 0.360610025 | V182: 0.3075079429
O183: 0.9900547807 | P183: 0.8203482999 | Q183: 0.6755641688 | R183: 0.5583947769 | S183: 0.4631934881 | T183: 0.3855432894 | U183: 0.3219732366 | V183: 0.2697438095
O184: 0.989065715 | P184: 0.8042630391 | Q184: 0.6495809316 | R184: 0.5267875254 | S184: 0.4288828593 | T184: 0.3504938995 | U184: 0.2874761041 | V184: 0.2366173768
O185: 0.9880776374 | P185: 0.7884931756 | Q185: 0.6245970496 | R185: 0.4969693636 | S185: 0.3971137586 | T185: 0.3186308177 | U185: 0.2566750929 | V185: 0.2075591024
O186: 0.9870905468 | P186: 0.7730325251 | Q186: 0.6005740861 | R186: 0.4688390222 | S186: 0.3676979247 | T186: 0.2896643797 | U186: 0.2291741901 | V186: 0.1820693881
O187: 0.9861044424 | P187: 0.7578750246 | Q187: 0.5774750828 | R187: 0.4423009644 | S187: 0.3404610414 | T187: 0.2633312543 | U187: 0.2046198126 | V187: 0.1597099896
O188: 0.985119323 | P188: 0.74301473 | Q188: 0.5552645027 | R188: 0.4172650607 | S188: 0.315241705 | T188: 0.2393920494 | U188: 0.1826962613 | V188: 0.1400964821
O189: 0.9841351879 | P189: 0.7284458137 | Q189: 0.5339081757 | R189: 0.3936462837 | S189: 0.2918904676 | T189: 0.2176291358 | U189: 0.1631216618 | V189: 0.1228916509
O190: 0.9831520358 | P190: 0.7141625625 | Q190: 0.5133732459 | R190: 0.3713644186 | S190: 0.2702689514 | T190: 0.1978446689 | U190: 0.1456443409 | V190: 0.1077996938
O191: 0.982169866 | P191: 0.700159375 | Q191: 0.493628121 | R191: 0.3503437911 | S191: 0.2502490291 | T191: 0.1798587899 | U191: 0.1300395901 | V191: 0.09456113492
O192: 0.9811886773 | P192: 0.6864307598 | Q192: 0.474642424 | R192: 0.3305130105 | S192: 0.231712064 | T192: 0.1635079908 | U192: 0.1161067769 | V192: 0.08294836396
O193: 0.9802084688 | P193: 0.6729713331 | Q193: 0.4563869462 | R193: 0.3118047269 | S193: 0.2145482074 | T193: 0.148643628 | U193: 0.1036667651 | V193: 0.07276172277
O194: 0.9792292396 | P194: 0.6597758168 | Q194: 0.4388336021 | R194: 0.2941554027 | S194: 0.1986557476 | T194: 0.1351305709 | U194: 0.09255961168 | V194: 0.06382607261
O195: 0.9782509886 | P195: 0.6468390361 | Q195: 0.4219553867 | R195: 0.2775050969 | S195: 0.183940507 | T195: 0.1228459736 | U195: 0.08264251043 | V195: 0.05598778299
O196: 0.9772737149 | P196: 0.6341559177 | Q196: 0.4057263333 | R196: 0.2617972612 | S196: 0.1703152843 | T196: 0.1116781578 | U196: 0.07378795574 | V196: 0.04911209034
O197: 0.9762974175 | P197: 0.6217214879 | Q197: 0.3901214743 | R197: 0.2469785483 | S197: 0.1576993373 | T197: 0.101525598 | U197: 0.06588210334 | V197: 0.043080781
O198: 0.9753220954 | P198: 0.6095308705 | Q198: 0.3751168023 | R198: 0.2329986305 | S198: 0.1460179049 | T198: 0.09229599818 | U198: 0.05882330655 | V198: 0.03779015877
O199: 0.9743477476 | P199: 0.5975792848 | Q199: 0.3606892329 | R199: 0.2198100288 | S199: 0.1352017638 | T199: 0.08390545289 | U199: 0.05252080942 | V199: 0.03314926208
O200: 0.9733743732 | P200: 0.585862044 | Q200: 0.3468165701 | R200: 0.2073679517 | S200: 0.1251868183 | T200: 0.07627768444 | U200: 0.04689357984 | V200: 0.02907830007
O201: 0.9724019713 | P201: 0.5743745529 | Q201: 0.3334774713 | R201: 0.1956301431 | S201: 0.1159137207 | T201: 0.06934334949 | U201: 0.04186926771 | V201: 0.02550728076
O202: 0.9714305407 | P202: 0.5631123068 | Q202: 0.3206514147 | R202: 0.1845567388 | S202: 0.1073275192 | T202: 0.06303940863 | U202: 0.03738327475 | V202: 0.02237480769
O203: 0.9704600806 | P203: 0.552070889 | Q203: 0.308318668 | R203: 0.1741101309 | S203: 0.09937733255 | T203: 0.0573085533 | U203: 0.03337792388 | V203: 0.01962702429

Sheet LCC (Byte T8 till LED)
A1: Lönsamhetsberäkningar med hjälp av LCC och återbetalningstid
B3: Generella indata | H3: Indata beräkningsexempel
B5: Kalkylperiod (år) | C5: 10 | H5: Märkeffekt befintlig belysning (W/ljuskälla) | I5: 58
B6: Kalkylränta (%) | C6: 0.05 | H6: Förluster befintlig (% av märkeffekt) | I6: 0.25 | J6: Se faktaruta Fakta LED-lysrör
H7: Märkeffekt ny belysning (W/ljuskälla) | I7: 22.4
B8: Energislag 1 | C8: El | H8: Antal befintlig belysning (st) | I8: 52
B9: Energipris energislag (kr/kWh) | C9: 1.2 | H9: Antal ny belysning (st) | I9: 52
B10: Förväntad real årlig energiprisförändring (%) | C10: 0.06 | H10: Kostnad ny belysning (kr/st) | I10: 237 | J10: Se faktaruta Kostnader
B11: Utsläppsfaktor (gCO2e/kWh) | C11: 125 | H11: Drifttimmar per år (h/år) | I11: 3000
B12: Energislag 2 | H12: Arbetskostnad installation (kr) | I12: =1500+575*8 -> 6100 | J12: Se faktaruta Kostnader
B13: Energipris energislag (kr/kWh) | H13: Underhållskostnad befintlig belysning (kr/år) | I13: 818 | J13: Se faktaruta Kostnader. Förs in i cell C35
B14: Förväntad real årlig energiprisförändring (%) | H14: Underhållskostnad ny belysning (kr/år) | I14: 0 | J14: Förs in i cell D35
B15: Utsläppsfaktor (gCO2e/kWh)
B16: Energislag 3 | H16: Årligt energibehov före (kWh/år) | I16: =I11*I5*(1+I6)/1000*I8 -> 11310 | J16: Detta värde förs in i cell C31
B17: Energipris energislag (kr/kWh) | H17: Årligt energibehov efter (kWh/år) | I17: =I11*I7/1000*I9 -> 3494.4 | J17: Detta värde förs in i cell D31
B18: Förväntad real årlig energiprisförändring (%) | H18: Investering (kr) | I18: =I9*I10+I12 -> 18424 | J18: Detta värde förs in i cell D29
B19: Utsläppsfaktor (gCO2e/kWh) | H19: Årlig energibesparing (kWh/år) | I19: =I16-I17 -> 7815.6
H20: Årlig utsläppsminskning (kgCO2e/år) | I20: =I19*C11/1000 -> 976.95
B21: Nusummefaktor | C21: =IF($C$6=0,$C$5,(1-(1+$C$6)^-$C$5)/$C$6) -> 7.721734929
B22: Nusummefaktor energislag 1 | C22: =IF($C$6=$C$10,$C$5,((1-((1+$C$10)/(1+$C$6))^$C$5)/((1+$C$6)/(1+$C$10)-1))) -> 10.53906441
B23: Nusummefaktor energislag 2 | C23: =IF($C$6=$C$14,$C$5,((1-((1+$C$14)/(1+$C$6))^$C$5)/((1+$C$6)/(1+$C$14)-1))) -> 7.721734929
B24: Nusummefaktor energislag 3 | C24: =IF($C$6=$C$18,$C$5,((1-((1+$C$18)/(1+$C$6))^$C$5)/((1+$C$6)/(1+$C$18)-1))) -> 7.721734929
B26: Data för olika åtgärder/utrustningsalternativ
C27: Alt A | D27: Alt B | E27: Alt C
B28: Åtgärd/utrustningsalternativ | C28: Behåll T8-belysning | D28: Byt till LED-belysning
B29: Investeringskostnad (kr) | C29: 0 | D29: =I18 -> 18424
B31: Årligt energibehov, energislag 1 (kWh) | C31: =I16 -> 11310 | D31: =I17 -> 3494.4
B32: Årligt energibehov, energislag 2 (kWh)
B33: Årligt energibehov, energislag 3 (kWh)
B35: Drift- och underhållskostnad (kr/år) | C35: =I13 -> 818 | D35: =I14 -> 0
B36: Underhållskostnad år 1 | F36: =(1+$C$6)^-1 -> 0.9523809524
B37: år 2 | F37: =(1+$C$6)^-2 -> 0.9070294785
B38: 3 | F38: =(1+$C$6)^-B38 -> 0.8638375985
B39: 4 | F39: =(1+$C$6)^-B39 -> 0.8227024748
B40: 5 | F40: 0.7835261665
B41: 6 | F41: 0.7462153966
B42: 7 | F42: 0.7106813301
B43: 8 | F43: 0.676839362
B44: 9 | F44: 0.6446089162
B45: 10 | F45: 0.6139132535
B46: 11 | F46: 0.5846792891
B47: 12 | F47: 0.5568374182
B48: 13 | F48: 0.5303213506
B49: 14 | F49: 0.505067953
B50: 15 | F50: 0.4810170981
B51: 16 | F51: 0.458111522
B52: 17 | F52: 0.4362966876
B53: 18 | F53: =(1+$C$6)^-B53 -> 0.4155206549
B54: 19 | F54: 0.395733957
B55: 20 | F55: 0.3768894829
B56: 21 | F56: 0.3589423646
B57: 22 | F57: 0.3418498711
B58: 23 | F58: 0.3255713058
B59: 24 | F59: 0.3100679103
B60: 25 | F60: 0.2953027717
B61: 26 | F61: 0.281240735
B62: 27 | F62: 0.267848319
B63: 28 | F63: 0.2550936371
B64: 29 | F64: 0.2429463211
B65: 30 | F65: 0.2313774487
A66: <- Tryck på plus för att ange kostnader för enskilda år
B67: Övriga årliga kostnader (kr/år)
B68: Övriga kostnader år 1 | F68: =(1+$C$6)^-1 -> 0.9523809524
B69: år 2 | F69: =(1+$C$6)^-2 -> 0.9070294785
B70: 3 | F70: =(1+$C$6)^-B70 -> 0.8638375985
B71: 4 | F71: =(1+$C$6)^-B71 -> 0.8227024748
B72: 5 | F72: 0.7835261665
B73: 6 | F73: 0.7462153966
B74: 7 | F74: 0.7106813301
B75: 8 | F75: 0.676839362
B76: 9 | F76: 0.6446089162
B77: 10 | F77: 0.6139132535
B78: 11 | F78: 0.5846792891
B79: 12 | F79: 0.5568374182
B80: 13 | F80: 0.5303213506
B81: 14 | F81: 0.505067953
B82: 15 | F82: 0.4810170981
B83: 16 | F83: 0.458111522
B84: 17 | F84: 0.4362966876
B85: 18 | F85: 0.4155206549
B86: 19 | F86: 0.395733957
B87: 20 | F87: 0.3768894829
B88: 21 | F88: 0.3589423646
B89: 22 | F89: 0.3418498711
B90: 23 | F90: 0.3255713058
B91: 24 | F91: 0.3100679103
B92: 25 | F92: 0.2953027717
B93: 26 | F93: 0.281240735
B94: 27 | F94: 0.267848319
B95: 28 | F95: 0.2550936371
B96: 29 | F96: 0.2429463211
B97: 30 | F97: 0.2313774487
A98: <- Tryck på plus för att ange kostnader för enskilda år
B99: Restvärde (kr)
B101: Beräkningar och resultat
C102: Alt A | D102: Alt B | E102: Alt C
B103: Nuvärde investering minus restvärde (kr) | C103: =C29-C99*(1+$C$6)^-$C$5 -> 0 | D103: =D29-D99*(1+$C$6)^-$C$5 -> 18424 | E103: =E29-E99*(1+$C$6)^-$C$5 -> 0 | F103: Investering minus restvärde
B104: Nuvärde drift- och underhållskostnader (kr) | C104: =C35*$C$21+SUMPRODUCT(C36:C65,$F$36:$F$65) -> 6316.379172 | D104: =D35*$C$21+SUMPRODUCT(D36:D65,$F$36:$F$65) -> 0 | E104: =E35*$C$21+SUMPRODUCT(E36:E65,$F$36:$F$65) -> 0 | F104: Drift- och underhållskostnader
B105: Nuvärde övriga kostnader (kr) | C105: =C67*$C$21+SUMPRODUCT(C68:C97,$F$68:$F$97) -> 0 | D105: =D67*$C$21+SUMPRODUCT(D68:D97,$F$68:$F$97) -> 0 | E105: =E67*$C$21+SUMPRODUCT(E68:E97,$F$68:$F$97) -> 0 | F105: Övriga kostnader
B106: Nuvärde energikostnader (kr) | C106: =C31*$C$9*$C$22+C32*$C$13*$C$23+C33*$C$17*$C$24 -> 143036.1822 | D106: =D31*$C$9*$C$22+D32*$C$13*$C$23+D33*$C$17*$C$24 -> 44193.24803 | E106: =E31*$C$9*$C$22+E32*$C$13*$C$23+E33*$C$17*$C$24 -> 0 | F106: Energikostnader
B107: Livscykelkostnad, LCC (kr) | C107: =SUM(C103:C106) -> 149352.5614 | D107: =IF(SUM(D103:D106)=0,"-",SUM(D103:D106)) -> 62617.24803 | E107: =IF(SUM(E103:E106)=0,"-",SUM(E103:E106)) -> -
B110: Lönsamhetsbedömning av åtgärd B och C (jämfört mot Alt A)
B111: Rak återbetalningstid, payoff (år) | D111: =IF(AND(D29>$C$29,(D31-$C$31)*$C$9+(D32-$C$32)*$C$13+(D33-$C$33)*$C$17+(D35-$C$35)+(D67-$C$67)>0),"återbetalas ej",IF(OR(D107="-",D29<$C$29),"-",(D29-$C$29)/(($C$31-D31)*$C$9+($C$32-D32)*$C$13+($C$33-D33)*$C$17+($C$35-D35)+($C$67-D67)))) -> 1.806855538 | E111: =IF(AND(E29>$C$29,(E31-$C$31)*$C$9+(E32-$C$32)*$C$13+(E33-$C$33)*$C$17+(E35-$C$35)+(E67-$C$67)>0),"återbetalas ej",IF(OR(E107="-",E29<$C$29),"-",(E29-$C$29)/(($C$31-E31)*$C$9+($C$32-E32)*$C$13+($C$33-E33)*$C$17+($C$35-E35)+($C$67-E67)))) -> -
B112: Nettonuvärde av investering, Minskning LCC (kr) | D112: =IF(D107="-","-",C107-D107) -> 86735.31337 | E112: =IF(E107="-","-",C107-E107) -> -
B113: =IF(OR(AND(ISNUMBER(D107),D29<C29),AND(ISNUMBER(E107),E29<C29)),"!!! För att uträkningen av återbetalningstid ska ge ett meningsfullt resultat behöver Alt A vara det alternativ som har lägst investeringskostnad !!!","") -> 
B115: Summering av resultat
B116: Av Alt A, B och C har | C116: =IF(SMALL(C107:E107,1)=C107,C27,IF(D107<E107,D27,E27)) -> Alt B | D116: lägst LCC-kostnad
B119: Jämförelse LCC
B135: Jämförelse Återbetalningstid
B150: Känslighetsanalys
F152: Alt A | G152: Alt B
E153: 0.001 | F153: =C$29-C$99*(1+$E153)^-$C$5+C$35*$J177+SUMPRODUCT(C$36:C$65,$O$177:$O$206)+C$67*$J177+SUMPRODUCT(C$68:C$97,$O$177:$O$206)+C$31*$C$9*$K177+C$32*$C$13*$L177+C$33*$C$17*$M177 -> 196629.4658 | G153: =D$29-D$99*(1+$E153)^-$C$5+D$35*$J177+SUMPRODUCT(D$36:D$65,$O$177:$O$206)+D$67*$J177+SUMPRODUCT(D$68:D$97,$O$177:$O$206)+D$31*$C$9*$K177+D$32*$C$13*$L177+D$33*$C$17*$M177 -> 76662.23161
E154: 0.02 | F154: =C$29-C$99*(1+$E154)^-$C$5+C$35*$J178+SUMPRODUCT(C$36:C$65,$P$177:$P$206)+C$67*$J178+SUMPRODUCT(C$68:C$97,$P$177:$P$206)+C$31*$C$9*$K178+C$32*$C$13*$L178+C$33*$C$17*$M178 -> 176070.1066 | G154: =D$29-D$99*(1+$E154)^-$C$5+D$35*$J178+SUMPRODUCT(D$36:D$65,$P$177:$P$206)+D$67*$J178+SUMPRODUCT(D$68:D$97,$P$177:$P$206)+D$31*$C$9*$K178+D$32*$C$13*$L178+D$33*$C$17*$M178 -> 70553.38879
E155: 0.04 | F155: =C$29-C$99*(1+$E155)^-$C$5+C$35*$J179+SUMPRODUCT(C$36:C$65,$Q$177:$Q$206)+C$67*$J179+SUMPRODUCT(C$68:C$97,$Q$177:$Q$206)+C$31*$C$9*$K179+C$32*$C$13*$L179+C$33*$C$17*$M179 -> 157570.6129 | G155: =D$29-D$99*(1+$E155)^-$C$5+D$35*$J179+SUMPRODUCT(D$36:D$65,$Q$177:$Q$206)+D$67*$J179+SUMPRODUCT(D$68:D$97,$Q$177:$Q$206)+D$31*$C$9*$K179+D$32*$C$13*$L179+D$33*$C$17*$M179 -> 65057.98847
E156: 0.06 | F156: =C$29-C$99*(1+$E156)^-$C$5+C$35*$J180+SUMPRODUCT(C$36:C$65,$R$177:$R$206)+C$67*$J180+SUMPRODUCT(C$68:C$97,$R$177:$R$206)+C$31*$C$9*$K180+C$32*$C$13*$L180+C$33*$C$17*$M180 -> 141740.5512 | G156: =D$29-D$99*(1+$E156)^-$C$5+D$35*$J180+SUMPRODUCT(D$36:D$65,$R$177:$R$206)+D$67*$J180+SUMPRODUCT(D$68:D$97,$R$177:$R$206)+D$31*$C$9*$K180+D$32*$C$13*$L180+D$33*$C$17*$M180 -> 60356.8
E157: 0.08 | F157: =C$29-C$99*(1+$E157)^-$C$5+C$35*$J181+SUMPRODUCT(C$36:C$65,$S$177:$S$206)+C$67*$J181+SUMPRODUCT(C$68:C$97,$S$177:$S$206)+C$31*$C$9*$K181+C$32*$C$13*$L181+C$33*$C$17*$M181 -> 128125.7571 | G157: =D$29-D$99*(1+$E157)^-$C$5+D$35*$J181+SUMPRODUCT(D$36:D$65,$S$177:$S$206)+D$67*$J181+SUMPRODUCT(D$68:D$97,$S$177:$S$206)+D$31*$C$9*$K181+D$32*$C$13*$L181+D$33*$C$17*$M181 -> 56314.57648
E158: 0.1 | F158: =C$29-C$99*(1+$E158)^-$C$5+C$35*$J182+SUMPRODUCT(C$36:C$65,$T$177:$T$206)+C$67*$J182+SUMPRODUCT(C$68:C$97,$T$177:$T$206)+C$31*$C$9*$K182+C$32*$C$13*$L182+C$33*$C$17*$M182 -> 116358.6373 | G158: =D$29-D$99*(1+$E158)^-$C$5+D$35*$J182+SUMPRODUCT(D$36:D$65,$T$177:$T$206)+D$67*$J182+SUMPRODUCT(D$68:D$97,$T$177:$T$206)+D$31*$C$9*$K182+D$32*$C$13*$L182+D$33*$C$17*$M182 -> 52821.86681
E159: 0.12 | F159: =C$29-C$99*(1+$E159)^-$C$5+C$35*$J183+SUMPRODUCT(C$36:C$65,$U$177:$U$206)+C$67*$J183+SUMPRODUCT(C$68:C$97,$U$177:$U$206)+C$31*$C$9*$K183+C$32*$C$13*$L183+C$33*$C$17*$M183 -> 106140.1414 | G159: =D$29-D$99*(1+$E159)^-$C$5+D$35*$J183+SUMPRODUCT(D$36:D$65,$U$177:$U$206)+D$67*$J183+SUMPRODUCT(D$68:D$97,$U$177:$U$206)+D$31*$C$9*$K183+D$32*$C$13*$L183+D$33*$C$17*$M183 -> 49789.64139
E160: 0.14 | F160: =C$29-C$99*(1+$E160)^-$C$5+C$35*$J184+SUMPRODUCT(C$36:C$65,$V$177:$V$206)+C$67*$J184+SUMPRODUCT(C$68:C$97,$V$177:$V$206)+C$31*$C$9*$K184+C$32*$C$13*$L184+C$33*$C$17*$M184 -> 97225.77319 | G160: =D$29-D$99*(1+$E160)^-$C$5+D$35*$J184+SUMPRODUCT(D$36:D$65,$V$177:$V$206)+D$67*$J184+SUMPRODUCT(D$68:D$97,$V$177:$V$206)+D$31*$C$9*$K184+D$32*$C$13*$L184+D$33*$C$17*$M184 -> 47145.12261
B167: Testa gärna också att variera andra osäkra indata, t.ex. investeringskostnader eller energipriser!
H176: Alt C
H177: =E$29-E$99*(1+$E153)^-$C$5+E$35*$J177+SUMPRODUCT(E$36:E$65,$O$177:$O$206)+E$67*$J177+SUMPRODUCT(E$68:E$97,$O$177:$O$206)+E$31*$C$9*$K177+E$32*$C$13*$L177+E$33*$C$17*$M177 -> 0 | J177: =(1-(1+$E153)^-$C$5)/$E153 -> 9.945219287 | K177: =IF($E153=$C$10,$C$5,((1-((1+$C$10)/(1+$E153))^$C$5)/((1+$E153)/(1+$C$10)-1))) -> 13.88846717 | L177: =IF($E153=$C$14,$C$5,((1-((1+$C$14)/(1+$E153))^$C$5)/((1+$E153)/(1+$C$14)-1))) -> 9.945219287 | M177: =IF($E153=$C$18,$C$5,((1-((1+$C$18)/(1+$E153))^$C$5)/((1+$E153)/(1+$C$18)-1))) -> 9.945219287 | O177: =(1+$E$153)^-1 -> 0.999000999 | P177: =(1+$E$154)^-1 -> 0.9803921569 | Q177: =(1+$E$155)^-1 -> 0.9615384615 | R177: =(1+$E$156)^-1 -> 0.9433962264 | S177: =(1+$E$157)^-1 -> 0.9259259259 | T177: =(1+$E$158)^-1 -> 0.9090909091 | U177: =(1+$E$159)^-1 -> 0.8928571429 | V177: =(1+$E$160)^-1 -> 0.8771929825
H178: =E$29-E$99*(1+$E154)^-$C$5+E$35*$J178+SUMPRODUCT(E$36:E$65,$P$177:$P$206)+E$67*$J178+SUMPRODUCT(E$68:E$97,$P$177:$P$206)+E$31*$C$9*$K178+E$32*$C$13*$L178+E$33*$C$17*$M178 -> 0 | J178: 8.982585006 | K178: 12.43164987 | L178: 8.982585006 | M178: 8.982585006 | O178: =(1+$E$153)^-2 -> 0.998002996 | P178: =(1+$E$154)^-2 -> 0.9611687812 | Q178: =(1+$E$155)^-2 -> 0.924556213 | R178: =(1+$E$156)^-2 -> 0.88999644 | S178: =(1+$E$157)^-2 -> 0.8573388203 | T178: =(1+$E$158)^-2 -> 0.826446281 | U178: =(1+$E$159)^-2 -> 0.7971938776 | V178: =(1+$E$160)^-2 -> 0.7694675285
H179: =E$29-E$99*(1+$E155)^-$C$5+E$35*$J179+SUMPRODUCT(E$36:E$65,$Q$177:$Q$206)+E$67*$J179+SUMPRODUCT(E$68:E$97,$Q$177:$Q$206)+E$31*$C$9*$K179+E$32*$C$13*$L179+E$33*$C$17*$M179 -> 0 | J179: 8.110895779 | K179: 11.12112439 | L179: 8.110895779 | M179: 8.110895779 | O179: =(1+$E$153)^-$B38 -> 0.99700599 | P179: =(1+$E$154)^-$B38 -> 0.9423223345 | Q179: =(1+$E$155)^-$B38 -> 0.8889963587 | R179: =(1+$E$156)^-$B38 -> 0.839619283 | S179: =(1+$E$157)^-$B38 -> 0.793832241 | T179: =(1+$E$158)^-$B38 -> 0.7513148009 | U179: =(1+$E$159)^-$B38 -> 0.7117802478 | V179: =(1+$E$160)^-$B38 -> 0.6749715162
H180: =E$29-E$99*(1+$E156)^-$C$5+E$35*$J180+SUMPRODUCT(E$36:E$65,$R$177:$R$206)+E$67*$J180+SUMPRODUCT(E$68:E$97,$R$177:$R$206)+E$31*$C$9*$K180+E$32*$C$13*$L180+E$33*$C$17*$M180 -> 0 | J180: 7.360087051 | K180: 10 | L180: 7.360087051 | M180: 7.360087051 | O180: 0.99600998 | P180: 0.923845426 | Q180: 0.854804191 | R180: 0.7920936632 | S180: 0.7350298528 | T180: 0.6830134554 | U180: 0.6355180784 | V180: 0.5920802774
H181: =E$29-E$99*(1+$E157)^-$C$5+E$35*$J181+SUMPRODUCT(E$36:E$65,$S$177:$S$206)+E$67*$J181+SUMPRODUCT(E$68:E$97,$S$177:$S$206)+E$31*$C$9*$K181+E$32*$C$13*$L181+E$33*$C$17*$M181 -> 0 | J181: 6.710081399 | K181: 9.036023467 | L181: 6.710081399 | M181: 6.710081399 | O181: 0.9950149651 | P181: 0.9057308098 | Q181: 0.8219271068 | R181: 0.7472581729 | S181: 0.680583197 | T181: 0.6209213231 | U181: 0.5674268557 | V181: 0.5193686644
H182: =E$29-E$99*(1+$E158)^-$C$5+E$35*$J182+SUMPRODUCT(E$36:E$65,$T$177:$T$206)+E$67*$J182+SUMPRODUCT(E$68:E$97,$T$177:$T$206)+E$31*$C$9*$K182+E$32*$C$13*$L182+E$33*$C$17*$M182 -> 0 | J182: 6.144567106 | K182: 8.203093238 | L182: 6.144567106 | M182: 6.144567106 | O182: 0.9940209441 | P182: 0.8879713822 | Q182: 0.7903145257 | R182: 0.7049605404 | S182: 0.6301696269 | T182: 0.5644739301 | U182: 0.5066311212 | V182: 0.4555865477
H183: =E$29-E$99*(1+$E159)^-$C$5+E$35*$J183+SUMPRODUCT(E$36:E$65,$U$177:$U$206)+E$67*$J183+SUMPRODUCT(E$68:E$97,$U$177:$U$206)+E$31*$C$9*$K183+E$32*$C$13*$L183+E$33*$C$17*$M183 -> 0 | J183: 5.650223028 | K183: 7.479977819 | L183: 5.650223028 | M183: 5.650223028 | O183: 0.9930279162 | P183: 0.8705601786 | Q183: 0.7599178132 | R183: 0.6650571136 | S183: 0.5834903953 | T183: 0.5131581182 | U183: 0.4523492153 | V183: 0.3996373225
H184: =E$29-E$99*(1+$E160)^-$C$5+E$35*$J184+SUMPRODUCT(E$36:E$65,$V$177:$V$206)+E$67*$J184+SUMPRODUCT(E$68:E$97,$V$177:$V$206)+E$31*$C$9*$K184+E$32*$C$13*$L184+E$33*$C$17*$M184 -> 0 | J184: 5.216115646 | K184: 6.849321441 | L184: 5.216115646 | M184: 5.216115646 | O184: 0.9920358803 | P184: 0.8534903712 | Q184: 0.730690205 | R184: 0.6274123713 | S184: 0.5402688845 | T184: 0.4665073802 | U184: 0.403883228 | V184: 0.3505590549
O185: 0.9910448355 | P185: 0.8367552659 | Q185: 0.7025867356 | R185: 0.5918984635 | S185: 0.5002489671 | T185: 0.4240976184 | U185: 0.360610025 | V185: 0.3075079429
O186: 0.9900547807 | P186: 0.8203482999 | Q186: 0.6755641688 | R186: 0.5583947769 | S186: 0.4631934881 | T186: 0.3855432894 | U186: 0.3219732366 | V186: 0.2697438095
O187: 0.989065715 | P187: 0.8042630391 | Q187: 0.6495809316 | R187: 0.5267875254 | S187: 0.4288828593 | T187: 0.3504938995 | U187: 0.2874761041 | V187: 0.2366173768
O188: 0.9880776374 | P188: 0.7884931756 | Q188: 0.6245970496 | R188: 0.4969693636 | S188: 0.3971137586 | T188: 0.3186308177 | U188: 0.2566750929 | V188: 0.2075591024
O189: 0.9870905468 | P189: 0.7730325251 | Q189: 0.6005740861 | R189: 0.4688390222 | S189: 0.3676979247 | T189: 0.2896643797 | U189: 0.2291741901 | V189: 0.1820693881
O190: 0.9861044424 | P190: 0.7578750246 | Q190: 0.5774750828 | R190: 0.4423009644 | S190: 0.3404610414 | T190: 0.2633312543 | U190: 0.2046198126 | V190: 0.1597099896
O191: 0.985119323 | P191: 0.74301473 | Q191: 0.5552645027 | R191: 0.4172650607 | S191: 0.315241705 | T191: 0.2393920494 | U191: 0.1826962613 | V191: 0.1400964821
O192: 0.9841351879 | P192: 0.7284458137 | Q192: 0.5339081757 | R192: 0.3936462837 | S192: 0.2918904676 | T192: 0.2176291358 | U192: 0.1631216618 | V192: 0.1228916509
O193: 0.9831520358 | P193: 0.7141625625 | Q193: 0.5133732459 | R193: 0.3713644186 | S193: 0.2702689514 | T193: 0.1978446689 | U193: 0.1456443409 | V193: 0.1077996938
O194: 0.982169866 | P194: 0.700159375 | Q194: 0.493628121 | R194: 0.3503437911 | S194: 0.2502490291 | T194: 0.1798587899 | U194: 0.1300395901 | V194: 0.09456113492
O195: 0.9811886773 | P195: 0.6864307598 | Q195: 0.474642424 | R195: 0.3305130105 | S195: 0.231712064 | T195: 0.1635079908 | U195: 0.1161067769 | V195: 0.08294836396
O196: 0.9802084688 | P196: 0.6729713331 | Q196: 0.4563869462 | R196: 0.3118047269 | S196: 0.2145482074 | T196: 0.148643628 | U196: 0.1036667651 | V196: 0.07276172277
O197: 0.9792292396 | P197: 0.6597758168 | Q197: 0.4388336021 | R197: 0.2941554027 | S197: 0.1986557476 | T197: 0.1351305709 | U197: 0.09255961168 | V197: 0.06382607261
O198: 0.9782509886 | P198: 0.6468390361 | Q198: 0.4219553867 | R198: 0.2775050969 | S198: 0.183940507 | T198: 0.1228459736 | U198: 0.08264251043 | V198: 0.05598778299
O199: 0.9772737149 | P199: 0.6341559177 | Q199: 0.4057263333 | R199: 0.2617972612 | S199: 0.1703152843 | T199: 0.1116781578 | U199: 0.07378795574 | V199: 0.04911209034
O200: 0.9762974175 | P200: 0.6217214879 | Q200: 0.3901214743 | R200: 0.2469785483 | S200: 0.1576993373 | T200: 0.101525598 | U200: 0.06588210334 | V200: 0.043080781
O201: 0.9753220954 | P201: 0.6095308705 | Q201: 0.3751168023 | R201: 0.2329986305 | S201: 0.1460179049 | T201: 0.09229599818 | U201: 0.05882330655 | V201: 0.03779015877
O202: 0.9743477476 | P202: 0.5975792848 | Q202: 0.3606892329 | R202: 0.2198100288 | S202: 0.1352017638 | T202: 0.08390545289 | U202: 0.05252080942 | V202: 0.03314926208
O203: 0.9733743732 | P203: 0.585862044 | Q203: 0.3468165701 | R203: 0.2073679517 | S203: 0.1251868183 | T203: 0.07627768444 | U203: 0.04689357984 | V203: 0.02907830007
O204: 0.9724019713 | P204: 0.5743745529 | Q204: 0.3334774713 | R204: 0.1956301431 | S204: 0.1159137207 | T204: 0.06934334949 | U204: 0.04186926771 | V204: 0.02550728076
O205: 0.9714305407 | P205: 0.5631123068 | Q205: 0.3206514147 | R205: 0.1845567388 | S205: 0.1073275192 | T205: 0.06303940863 | U205: 0.03738327475 | V205: 0.02237480769
O206: 0.9704600806 | P206: 0.552070889 | Q206: 0.308318668 | R206: 0.1741101309 | S206: 0.09937733255 | T206: 0.0573085533 | U206: 0.03337792388 | V206: 0.01962702429

Sheet LCC (Rörelsevakt)
A1: Lönsamhetsberäkningar med hjälp av LCC och återbetalningstid
B3: Generella indata | H3: Indata beräkningsexempel
B5: Kalkylperiod (år) | C5: 10 | H5: Märkeffekt (W/ljuskälla) | I5: 58
B6: Kalkylränta (%) | C6: 0.05 | H6: Förlust (% av märkeffekt) | I6: 0.25
H7: Antal belysning (st) | I7: 52
B8: Energislag 1 | C8: El | H8: Drifttimmar utan rörelsevakt (h/år) | I8: =300*10 -> 3000
B9: Energipris energislag (kr/kWh) | C9: 1.2 | H9: Drifttimmar med rörelsevakt (h/år) | I9: =300*8.75 -> 2625 | J9: Se faktaruta Fakta rörelsevakt
B10: Förväntad real årlig energiprisförändring (%) | C10: 0.06 | H10: Kostnad rörelsevakt (kr) | I10: 579
B11: Utsläppsfaktor (gCO2e/kWh) | C11: 125 | H11: Arbetskostnad installation (kr) | I11: 575
B12: Energislag 2
B13: Energipris energislag (kr/kWh) | H13: Investeringskostnad (kr) | I13: =I10+I11 -> 1154 | J13: Detta värde förs in i cell D29
B14: Förväntad real årlig energiprisförändring (%) | H14: Årligt energibehov utan vakt (kWh/år) | I14: =I8*(1+I6)*I5*I7/1000 -> 11310 | J14: Detta värde förs in i cell C31
B15: Utsläppsfaktor (gCO2e/kWh) | H15: Årligt energibehov med vakt (kWh/år) | I15: =I9*I7*I5*(1+I6)/1000 -> 9896.25 | J15: Detta värde förs in i cell D31
B16: Energislag 3 | H16: Årlig energibesparing (kWh/år) | I16: =I14-I15 -> 1413.75
B17: Energipris energislag (kr/kWh) | H17: Årlig utsläppsminskning (kgCO2e/år) | I17: =I16*C11/1000 -> 176.71875
B18: Förväntad real årlig energiprisförändring (%)
B19: Utsläppsfaktor (gCO2e/kWh)
B21: Nusummefaktor | C21: =IF($C$6=0,$C$5,(1-(1+$C$6)^-$C$5)/$C$6) -> 7.721734929
B22: Nusummefaktor energislag 1 | C22: =IF($C$6=$C$10,$C$5,((1-((1+$C$10)/(1+$C$6))^$C$5)/((1+$C$6)/(1+$C$10)-1))) -> 10.53906441
B23: Nusummefaktor energislag 2 | C23: =IF($C$6=$C$14,$C$5,((1-((1+$C$14)/(1+$C$6))^$C$5)/((1+$C$6)/(1+$C$14)-1))) -> 7.721734929
B24: Nusummefaktor energislag 3 | C24: =IF($C$6=$C$18,$C$5,((1-((1+$C$18)/(1+$C$6))^$C$5)/((1+$C$6)/(1+$C$18)-1))) -> 7.721734929
B26: Data för olika åtgärder/utrustningsalternativ
C27: Alt A | D27: Alt B | E27: Alt C
B28: Åtgärd/utrustningsalternativ | C28: T8 58 W (Ingen åtgärd) | D28: T8 58 W (Installera rörelsevakt)
B29: Investeringskostnad (kr) | C29: 0 | D29: =I13 -> 1154
B31: Årligt energibehov, energislag 1 (kWh) | C31: =I14 -> 11310 | D31: =I15 -> 9896.25
B32: Årligt energibehov, energislag 2 (kWh)
B33: Årligt energibehov, energislag 3 (kWh)
B35: Drift- och underhållskostnad (kr/år)
B36: Underhållskostnad år 1 | F36: =(1+$C$6)^-1 -> 0.9523809524
B37: år 2 | F37: =(1+$C$6)^-2 -> 0.9070294785
B38: 3 | F38: =(1+$C$6)^-B38 -> 0.8638375985
B39: 4 | F39: =(1+$C$6)^-B39 -> 0.8227024748
B40: 5 | F40: 0.7835261665
B41: 6 | F41: 0.7462153966
B42: 7 | F42: 0.7106813301
B43: 8 | F43: 0.676839362
B44: 9 | F44: 0.6446089162
B45: 10 | F45: 0.6139132535
B46: 11 | F46: 0.5846792891
B47: 12 | F47: 0.5568374182
B48: 13 | F48: 0.5303213506
B49: 14 | F49: 0.505067953
B50: 15 | F50: 0.4810170981
B51: 16 | F51: 0.458111522
B52: 17 | F52: 0.4362966876
B53: 18 | F53: =(1+$C$6)^-B53 -> 0.4155206549
B54: 19 | F54: 0.395733957
B55: 20 | F55: 0.3768894829
B56: 21 | F56: 0.3589423646
B57: 22 | F57: 0.3418498711
B58: 23 | F58: 0.3255713058
B59: 24 | F59: 0.3100679103
B60: 25 | F60: 0.2953027717
B61: 26 | F61: 0.281240735
B62: 27 | F62: 0.267848319
B63: 28 | F63: 0.2550936371
B64: 29 | F64: 0.2429463211
B65: 30 | F65: 0.2313774487
A66: <- Tryck på plus för att ange kostnader för enskilda år
B67: Övriga årliga kostnader (kr/år)
B68: Övriga kostnader år 1 | F68: =(1+$C$6)^-1 -> 0.9523809524
B69: år 2 | F69: =(1+$C$6)^-2 -> 0.9070294785
B70: 3 | F70: =(1+$C$6)^-B70 -> 0.8638375985
B71: 4 | F71: =(1+$C$6)^-B71 -> 0.8227024748
B72: 5 | F72: 0.7835261665
B73: 6 | F73: 0.7462153966
B74: 7 | F74: 0.7106813301
B75: 8 | F75: 0.676839362
B76: 9 | F76: 0.6446089162
B77: 10 | F77: 0.6139132535
B78: 11 | F78: 0.5846792891
B79: 12 | F79: 0.5568374182
B80: 13 | F80: 0.5303213506
B81: 14 | F81: 0.505067953
B82: 15 | F82: 0.4810170981
B83: 16 | F83: 0.458111522
B84: 17 | F84: 0.4362966876
B85: 18 | F85: 0.4155206549
B86: 19 | F86: 0.395733957
B87: 20 | F87: 0.3768894829
B88: 21 | F88: 0.3589423646
B89: 22 | F89: 0.3418498711
B90: 23 | F90: 0.3255713058
B91: 24 | F91: 0.3100679103
B92: 25 | F92: 0.2953027717
B93: 26 | F93: 0.281240735
B94: 27 | F94: 0.267848319
B95: 28 | F95: 0.2550936371
B96: 29 | F96: 0.2429463211
B97: 30 | F97: 0.2313774487
A98: <- Tryck på plus för att ange kostnader för enskilda år
B99: Restvärde (kr)
B101: Beräkningar och resultat
C102: Alt A | D102: Alt B | E102: Alt C
B103: Nuvärde investering minus restvärde (kr) | C103: =C29-C99*(1+$C$6)^-$C$5 -> 0 | D103: =D29-D99*(1+$C$6)^-$C$5 -> 1154 | E103: =E29-E99*(1+$C$6)^-$C$5 -> 0 | F103: Investering minus restvärde
B104: Nuvärde drift- och underhållskostnader (kr) | C104: =C35*$C$21+SUMPRODUCT(C36:C65,$F$36:$F$65) -> 0 | D104: =D35*$C$21+SUMPRODUCT(D36:D65,$F$36:$F$65) -> 0 | E104: =E35*$C$21+SUMPRODUCT(E36:E65,$F$36:$F$65) -> 0 | F104: Drift- och underhållskostnader
B105: Nuvärde övriga kostnader (kr) | C105: =C67*$C$21+SUMPRODUCT(C68:C97,$F$68:$F$97) -> 0 | D105: =D67*$C$21+SUMPRODUCT(D68:D97,$F$68:$F$97) -> 0 | E105: =E67*$C$21+SUMPRODUCT(E68:E97,$F$68:$F$97) -> 0 | F105: Övriga kostnader
B106: Nuvärde energikostnader (kr) | C106: =C31*$C$9*$C$22+C32*$C$13*$C$23+C33*$C$17*$C$24 -> 143036.1822 | D106: =D31*$C$9*$C$22+D32*$C$13*$C$23+D33*$C$17*$C$24 -> 125156.6594 | E106: =E31*$C$9*$C$22+E32*$C$13*$C$23+E33*$C$17*$C$24 -> 0 | F106: Energikostnader
B107: Livscykelkostnad, LCC (kr) | C107: =SUM(C103:C106) -> 143036.1822 | D107: =IF(SUM(D103:D106)=0,"-",SUM(D103:D106)) -> 126310.6594 | E107: =IF(SUM(E103:E106)=0,"-",SUM(E103:E106)) -> -
B110: Lönsamhetsbedömning av åtgärd B och C (jämfört mot Alt A)
B111: Rak återbetalningstid, payoff (år) | D111: =IF(AND(D29>$C$29,(D31-$C$31)*$C$9+(D32-$C$32)*$C$13+(D33-$C$33)*$C$17+(D35-$C$35)+(D67-$C$67)>0),"återbetalas ej",IF(OR(D107="-",D29<$C$29),"-",(D29-$C$29)/(($C$31-D31)*$C$9+($C$32-D32)*$C$13+($C$33-D33)*$C$17+($C$35-D35)+($C$67-D67)))) -> 0.6802239906 | E111: =IF(AND(E29>$C$29,(E31-$C$31)*$C$9+(E32-$C$32)*$C$13+(E33-$C$33)*$C$17+(E35-$C$35)+(E67-$C$67)>0),"återbetalas ej",IF(OR(E107="-",E29<$C$29),"-",(E29-$C$29)/(($C$31-E31)*$C$9+($C$32-E32)*$C$13+($C$33-E33)*$C$17+($C$35-E35)+($C$67-E67)))) -> -
B112: Nettonuvärde av investering, Minskning LCC (kr) | D112: =IF(D107="-","-",C107-D107) -> 16725.52278 | E112: =IF(E107="-","-",C107-E107) -> -
B113: =IF(OR(AND(ISNUMBER(D107),D29<C29),AND(ISNUMBER(E107),E29<C29)),"!!! För att uträkningen av återbetalningstid ska ge ett meningsfullt resultat behöver Alt A vara det alternativ som har lägst investeringskostnad !!!","") -> 
B115: Summering av resultat
B116: Av Alt A, B och C har | C116: =IF(SMALL(C107:E107,1)=C107,C27,IF(D107<E107,D27,E27)) -> Alt B | D116: lägst LCC-kostnad
B119: Jämförelse LCC
B135: Jämförelse Återbetalningstid
B150: Känslighetsanalys
F152: Alt A | G152: Alt B
E153: 0.001 | F153: =C$29-C$99*(1+$E153)^-$C$5+C$35*$J180+SUMPRODUCT(C$36:C$65,$O$177:$O$206)+C$67*$J180+SUMPRODUCT(C$68:C$97,$O$177:$O$206)+C$31*$C$9*$K177+C$32*$C$13*$L177+C$33*$C$17*$M177 -> 188494.2764 | G153: =D$29-D$99*(1+$E153)^-$C$5+D$35*$J180+SUMPRODUCT(D$36:D$65,$O$177:$O$206)+D$67*$J180+SUMPRODUCT(D$68:D$97,$O$177:$O$206)+D$31*$C$9*$K177+D$32*$C$13*$L177+D$33*$C$17*$M177 -> 166086.4919
E154: 0.02 | F154: =C$29-C$99*(1+$E154)^-$C$5+C$35*$J181+SUMPRODUCT(C$36:C$65,$P$177:$P$206)+C$67*$J181+SUMPRODUCT(C$68:C$97,$P$177:$P$206)+C$31*$C$9*$K178+C$32*$C$13*$L178+C$33*$C$17*$M178 -> 168722.3521 | G154: =D$29-D$99*(1+$E154)^-$C$5+D$35*$J181+SUMPRODUCT(D$36:D$65,$P$177:$P$206)+D$67*$J181+SUMPRODUCT(D$68:D$97,$P$177:$P$206)+D$31*$C$9*$K178+D$32*$C$13*$L178+D$33*$C$17*$M178 -> 148786.0581
E155: 0.04 | F155: =C$29-C$99*(1+$E155)^-$C$5+C$35*$J182+SUMPRODUCT(C$36:C$65,$Q$177:$Q$206)+C$67*$J182+SUMPRODUCT(C$68:C$97,$Q$177:$Q$206)+C$31*$C$9*$K179+C$32*$C$13*$L179+C$33*$C$17*$M179 -> 150935.9002 | G155: =D$29-D$99*(1+$E155)^-$C$5+D$35*$J182+SUMPRODUCT(D$36:D$65,$Q$177:$Q$206)+D$67*$J182+SUMPRODUCT(D$68:D$97,$Q$177:$Q$206)+D$31*$C$9*$K179+D$32*$C$13*$L179+D$33*$C$17*$M179 -> 133222.9127
E156: 0.06 | F156: =C$29-C$99*(1+$E156)^-$C$5+C$35*$J183+SUMPRODUCT(C$36:C$65,$R$177:$R$206)+C$67*$J183+SUMPRODUCT(C$68:C$97,$R$177:$R$206)+C$31*$C$9*$K180+C$32*$C$13*$L180+C$33*$C$17*$M180 -> 135720 | G156: =D$29-D$99*(1+$E156)^-$C$5+D$35*$J183+SUMPRODUCT(D$36:D$65,$R$177:$R$206)+D$67*$J183+SUMPRODUCT(D$68:D$97,$R$177:$R$206)+D$31*$C$9*$K180+D$32*$C$13*$L180+D$33*$C$17*$M180 -> 119909
E157: 0.08 | F157: =C$29-C$99*(1+$E157)^-$C$5+C$35*$J184+SUMPRODUCT(C$36:C$65,$S$177:$S$206)+C$67*$J184+SUMPRODUCT(C$68:C$97,$S$177:$S$206)+C$31*$C$9*$K181+C$32*$C$13*$L181+C$33*$C$17*$M181 -> 122636.9105 | G157: =D$29-D$99*(1+$E157)^-$C$5+D$35*$J184+SUMPRODUCT(D$36:D$65,$S$177:$S$206)+D$67*$J184+SUMPRODUCT(D$68:D$97,$S$177:$S$206)+D$31*$C$9*$K181+D$32*$C$13*$L181+D$33*$C$17*$M181 -> 108461.2967
E158: 0.1 | F158: =C$29-C$99*(1+$E158)^-$C$5+C$35*$J185+SUMPRODUCT(C$36:C$65,$T$177:$T$206)+C$67*$J185+SUMPRODUCT(C$68:C$97,$T$177:$T$206)+C$31*$C$9*$K182+C$32*$C$13*$L182+C$33*$C$17*$M182 -> 111332.3814 | G158: =D$29-D$99*(1+$E158)^-$C$5+D$35*$J185+SUMPRODUCT(D$36:D$65,$T$177:$T$206)+D$67*$J185+SUMPRODUCT(D$68:D$97,$T$177:$T$206)+D$31*$C$9*$K182+D$32*$C$13*$L182+D$33*$C$17*$M182 -> 98569.83374
E159: 0.12 | F159: =C$29-C$99*(1+$E159)^-$C$5+C$35*$J186+SUMPRODUCT(C$36:C$65,$U$177:$U$206)+C$67*$J186+SUMPRODUCT(C$68:C$97,$U$177:$U$206)+C$31*$C$9*$K183+C$32*$C$13*$L183+C$33*$C$17*$M183 -> 101518.259 | G159: =D$29-D$99*(1+$E159)^-$C$5+D$35*$J186+SUMPRODUCT(D$36:D$65,$U$177:$U$206)+D$67*$J186+SUMPRODUCT(D$68:D$97,$U$177:$U$206)+D$31*$C$9*$K183+D$32*$C$13*$L183+D$33*$C$17*$M183 -> 89982.47659
E160: 0.14 | F160: =C$29-C$99*(1+$E160)^-$C$5+C$35*$J187+SUMPRODUCT(C$36:C$65,$V$177:$V$206)+C$67*$J187+SUMPRODUCT(C$68:C$97,$V$177:$V$206)+C$31*$C$9*$K184+C$32*$C$13*$L184+C$33*$C$17*$M184 -> 92958.9906 | G160: =D$29-D$99*(1+$E160)^-$C$5+D$35*$J187+SUMPRODUCT(D$36:D$65,$V$177:$V$206)+D$67*$J187+SUMPRODUCT(D$68:D$97,$V$177:$V$206)+D$31*$C$9*$K184+D$32*$C$13*$L184+D$33*$C$17*$M184 -> 82493.11677
B167: Testa gärna också att variera andra osäkra indata, t.ex. investeringskostnader eller energipriser!
K177: =IF($E153=$C$10,$C$5,((1-((1+$C$10)/(1+$E153))^$C$5)/((1+$E153)/(1+$C$10)-1))) -> 13.88846717 | L177: =IF($E153=$C$14,$C$5,((1-((1+$C$14)/(1+$E153))^$C$5)/((1+$E153)/(1+$C$14)-1))) -> 9.945219287 | M177: =IF($E153=$C$18,$C$5,((1-((1+$C$18)/(1+$E153))^$C$5)/((1+$E153)/(1+$C$18)-1))) -> 9.945219287 | O177: =(1+$E$153)^-1 -> 0.999000999 | P177: =(1+$E$154)^-1 -> 0.9803921569 | Q177: =(1+$E$155)^-1 -> 0.9615384615 | R177: =(1+$E$156)^-1 -> 0.9433962264 | S177: =(1+$E$157)^-1 -> 0.9259259259 | T177: =(1+$E$158)^-1 -> 0.9090909091 | U177: =(1+$E$159)^-1 -> 0.8928571429 | V177: =(1+$E$160)^-1 -> 0.8771929825
K178: 12.43164987 | L178: 8.982585006 | M178: 8.982585006 | O178: =(1+$E$153)^-2 -> 0.998002996 | P178: =(1+$E$154)^-2 -> 0.9611687812 | Q178: =(1+$E$155)^-2 -> 0.924556213 | R178: =(1+$E$156)^-2 -> 0.88999644 | S178: =(1+$E$157)^-2 -> 0.8573388203 | T178: =(1+$E$158)^-2 -> 0.826446281 | U178: =(1+$E$159)^-2 -> 0.7971938776 | V178: =(1+$E$160)^-2 -> 0.7694675285
H179: Alt C | K179: 11.12112439 | L179: 8.110895779 | M179: 8.110895779 | O179: =(1+$E$153)^-$B38 -> 0.99700599 | P179: =(1+$E$154)^-$B38 -> 0.9423223345 | Q179: =(1+$E$155)^-$B38 -> 0.8889963587 | R179: =(1+$E$156)^-$B38 -> 0.839619283 | S179: =(1+$E$157)^-$B38 -> 0.793832241 | T179: =(1+$E$158)^-$B38 -> 0.7513148009 | U179: =(1+$E$159)^-$B38 -> 0.7117802478 | V179: =(1+$E$160)^-$B38 -> 0.6749715162
H180: =E$29-E$99*(1+$E153)^-$C$5+E$35*$J180+SUMPRODUCT(E$36:E$65,$O$177:$O$206)+E$67*$J180+SUMPRODUCT(E$68:E$97,$O$177:$O$206)+E$31*$C$9*$K177+E$32*$C$13*$L177+E$33*$C$17*$M177 -> 0 | J180: =(1-(1+$E153)^-$C$5)/$E153 -> 9.945219287 | K180: 10 | L180: 7.360087051 | M180: 7.360087051 | O180: 0.99600998 | P180: 0.923845426 | Q180: 0.854804191 | R180: 0.7920936632 | S180: 0.7350298528 | T180: 0.6830134554 | U180: 0.6355180784 | V180: 0.5920802774
H181: =E$29-E$99*(1+$E154)^-$C$5+E$35*$J181+SUMPRODUCT(E$36:E$65,$P$177:$P$206)+E$67*$J181+SUMPRODUCT(E$68:E$97,$P$177:$P$206)+E$31*$C$9*$K178+E$32*$C$13*$L178+E$33*$C$17*$M178 -> 0 | J181: 8.982585006 | K181: 9.036023467 | L181: 6.710081399 | M181: 6.710081399 | O181: 0.9950149651 | P181: 0.9057308098 | Q181: 0.8219271068 | R181: 0.7472581729 | S181: 0.680583197 | T181: 0.6209213231 | U181: 0.5674268557 | V181: 0.5193686644
H182: =E$29-E$99*(1+$E155)^-$C$5+E$35*$J182+SUMPRODUCT(E$36:E$65,$Q$177:$Q$206)+E$67*$J182+SUMPRODUCT(E$68:E$97,$Q$177:$Q$206)+E$31*$C$9*$K179+E$32*$C$13*$L179+E$33*$C$17*$M179 -> 0 | J182: 8.110895779 | K182: 8.203093238 | L182: 6.144567106 | M182: 6.144567106 | O182: 0.9940209441 | P182: 0.8879713822 | Q182: 0.7903145257 | R182: 0.7049605404 | S182: 0.6301696269 | T182: 0.5644739301 | U182: 0.5066311212 | V182: 0.4555865477
H183: =E$29-E$99*(1+$E156)^-$C$5+E$35*$J183+SUMPRODUCT(E$36:E$65,$R$177:$R$206)+E$67*$J183+SUMPRODUCT(E$68:E$97,$R$177:$R$206)+E$31*$C$9*$K180+E$32*$C$13*$L180+E$33*$C$17*$M180 -> 0 | J183: 7.360087051 | K183: 7.479977819 | L183: 5.650223028 | M183: 5.650223028 | O183: 0.9930279162 | P183: 0.8705601786 | Q183: 0.7599178132 | R183: 0.6650571136 | S183: 0.5834903953 | T183: 0.5131581182 | U183: 0.4523492153 | V183: 0.3996373225
H184: =E$29-E$99*(1+$E157)^-$C$5+E$35*$J184+SUMPRODUCT(E$36:E$65,$S$177:$S$206)+E$67*$J184+SUMPRODUCT(E$68:E$97,$S$177:$S$206)+E$31*$C$9*$K181+E$32*$C$13*$L181+E$33*$C$17*$M181 -> 0 | J184: 6.710081399 | K184: 6.849321441 | L184: 5.216115646 | M184: 5.216115646 | O184: 0.9920358803 | P184: 0.8534903712 | Q184: 0.730690205 | R184: 0.6274123713 | S184: 0.5402688845 | T184: 0.4665073802 | U184: 0.403883228 | V184: 0.3505590549
H185: =E$29-E$99*(1+$E158)^-$C$5+E$35*$J185+SUMPRODUCT(E$36:E$65,$T$177:$T$206)+E$67*$J185+SUMPRODUCT(E$68:E$97,$T$177:$T$206)+E$31*$C$9*$K182+E$32*$C$13*$L182+E$33*$C$17*$M182 -> 0 | J185: 6.144567106 | O185: 0.9910448355 | P185: 0.8367552659 | Q185: 0.7025867356 | R185: 0.5918984635 | S185: 0.5002489671 | T185: 0.4240976184 | U185: 0.360610025 | V185: 0.3075079429
H186: =E$29-E$99*(1+$E159)^-$C$5+E$35*$J186+SUMPRODUCT(E$36:E$65,$U$177:$U$206)+E$67*$J186+SUMPRODUCT(E$68:E$97,$U$177:$U$206)+E$31*$C$9*$K183+E$32*$C$13*$L183+E$33*$C$17*$M183 -> 0 | J186: 5.650223028 | O186: 0.9900547807 | P186: 0.8203482999 | Q186: 0.6755641688 | R186: 0.5583947769 | S186: 0.4631934881 | T186: 0.3855432894 | U186: 0.3219732366 | V186: 0.2697438095
H187: =E$29-E$99*(1+$E160)^-$C$5+E$35*$J187+SUMPRODUCT(E$36:E$65,$V$177:$V$206)+E$67*$J187+SUMPRODUCT(E$68:E$97,$V$177:$V$206)+E$31*$C$9*$K184+E$32*$C$13*$L184+E$33*$C$17*$M184 -> 0 | J187: 5.216115646 | O187: 0.989065715 | P187: 0.8042630391 | Q187: 0.6495809316 | R187: 0.5267875254 | S187: 0.4288828593 | T187: 0.3504938995 | U187: 0.2874761041 | V187: 0.2366173768
O188: 0.9880776374 | P188: 0.7884931756 | Q188: 0.6245970496 | R188: 0.4969693636 | S188: 0.3971137586 | T188: 0.3186308177 | U188: 0.2566750929 | V188: 0.2075591024
O189: 0.9870905468 | P189: 0.7730325251 | Q189: 0.6005740861 | R189: 0.4688390222 | S189: 0.3676979247 | T189: 0.2896643797 | U189: 0.2291741901 | V189: 0.1820693881
O190: 0.9861044424 | P190: 0.7578750246 | Q190: 0.5774750828 | R190: 0.4423009644 | S190: 0.3404610414 | T190: 0.2633312543 | U190: 0.2046198126 | V190: 0.1597099896
O191: 0.985119323 | P191: 0.74301473 | Q191: 0.5552645027 | R191: 0.4172650607 | S191: 0.315241705 | T191: 0.2393920494 | U191: 0.1826962613 | V191: 0.1400964821
O192: 0.9841351879 | P192: 0.7284458137 | Q192: 0.5339081757 | R192: 0.3936462837 | S192: 0.2918904676 | T192: 0.2176291358 | U192: 0.1631216618 | V192: 0.1228916509
O193: 0.9831520358 | P193: 0.7141625625 | Q193: 0.5133732459 | R193: 0.3713644186 | S193: 0.2702689514 | T193: 0.1978446689 | U193: 0.1456443409 | V193: 0.1077996938
O194: 0.982169866 | P194: 0.700159375 | Q194: 0.493628121 | R194: 0.3503437911 | S194: 0.2502490291 | T194: 0.1798587899 | U194: 0.1300395901 | V194: 0.09456113492
O195: 0.9811886773 | P195: 0.6864307598 | Q195: 0.474642424 | R195: 0.3305130105 | S195: 0.231712064 | T195: 0.1635079908 | U195: 0.1161067769 | V195: 0.08294836396
O196: 0.9802084688 | P196: 0.6729713331 | Q196: 0.4563869462 | R196: 0.3118047269 | S196: 0.2145482074 | T196: 0.148643628 | U196: 0.1036667651 | V196: 0.07276172277
O197: 0.9792292396 | P197: 0.6597758168 | Q197: 0.4388336021 | R197: 0.2941554027 | S197: 0.1986557476 | T197: 0.1351305709 | U197: 0.09255961168 | V197: 0.06382607261
O198: 0.9782509886 | P198: 0.6468390361 | Q198: 0.4219553867 | R198: 0.2775050969 | S198: 0.183940507 | T198: 0.1228459736 | U198: 0.08264251043 | V198: 0.05598778299
O199: 0.9772737149 | P199: 0.6341559177 | Q199: 0.4057263333 | R199: 0.2617972612 | S199: 0.1703152843 | T199: 0.1116781578 | U199: 0.07378795574 | V199: 0.04911209034
O200: 0.9762974175 | P200: 0.6217214879 | Q200: 0.3901214743 | R200: 0.2469785483 | S200: 0.1576993373 | T200: 0.101525598 | U200: 0.06588210334 | V200: 0.043080781
O201: 0.9753220954 | P201: 0.6095308705 | Q201: 0.3751168023 | R201: 0.2329986305 | S201: 0.1460179049 | T201: 0.09229599818 | U201: 0.05882330655 | V201: 0.03779015877
O202: 0.9743477476 | P202: 0.5975792848 | Q202: 0.3606892329 | R202: 0.2198100288 | S202: 0.1352017638 | T202: 0.08390545289 | U202: 0.05252080942 | V202: 0.03314926208
O203: 0.9733743732 | P203: 0.585862044 | Q203: 0.3468165701 | R203: 0.2073679517 | S203: 0.1251868183 | T203: 0.07627768444 | U203: 0.04689357984 | V203: 0.02907830007
O204: 0.9724019713 | P204: 0.5743745529 | Q204: 0.3334774713 | R204: 0.1956301431 | S204: 0.1159137207 | T204: 0.06934334949 | U204: 0.04186926771 | V204: 0.02550728076
O205: 0.9714305407 | P205: 0.5631123068 | Q205: 0.3206514147 | R205: 0.1845567388 | S205: 0.1073275192 | T205: 0.06303940863 | U205: 0.03738327475 | V205: 0.02237480769
O206: 0.9704600806 | P206: 0.552070889 | Q206: 0.308318668 | R206: 0.1741101309 | S206: 0.09937733255 | T206: 0.0573085533 | U206: 0.03337792388 | V206: 0.01962702429

Sheet Förklaringar
A1: Förklaringar
A2: Här presenteras korta förklaringar av de olika parametrarna i LCC-kalkylen. För en mer utförlig förklaring och beskrivningar av de exempel som finns inlagda på separata flikar hänvisas till den mer omfattande manualen som hör till verktyget. Manualen kan laddas ner från samma ställe som verktyget.
A3: Indata anges i orangefärgade celler, och det är enbart dessa som går att ändra i.
A4: För beräkningarna av livscykelkostnad (LCC) och återbetalningstid behövs följande uppgifter:
A5: Indata - parameter | B5: Förklaring
A6: Kalkylperiod | B6: Utrustningens faktiska brukstid/användningstid, ekonomiska livslängd eller uppskattade tekniska livslängd.
A7: Kalkylränta | B7: Kalkylräntan används för att räkna om betalningar som görs i framtiden till dagens penningvärde. Här anges den reala kalkylräntan, dvs kalkylränta utöver inflation (real kalkylränta ≈ nominell kalkylränta - inflation). Vilken kalkylränta man ska använda bestäms i allmänhet av den lägsta avkastning som är acceptabel för den som gör investeringen.
A8: Energipris för olika energislag | B8: Aktuell pris som företaget betalar för t.ex. el, fjärrvärme eller annat energislag vars användning påverkas genom investeringen. Både energislag och pris anges av användaren.
A9: Förväntad real årlig energiprisförändring | B9: Real årlig förändring av energipriset utöver inflationen (real prisförändring ≈ nominell prisförändring - inflation)
A10: Investeringskostnad | B10: Initial engångskostnad i samband med inköp och installation.
A11: Årligt energibehov för olika energislag | B11: Årligt energibehov. Kan uppskattas utifrån effekt och drifttid för utrustningen (energibehov = effekt x drifttid). För lönsamhetsberäkning (återbetalningstid och nettonuvärde) behöver endast energbehov som skiljer mellan alternativen anges.
A12: Drift- och underhållskostnader | B12: Kostnader för underhåll och skötsel anges i normalfallet som en fast årlig kostnad. I särskilda fall kan kostnader för enskilda år anges. (Kostnaderna ska anges utan inflation,dvs i dagens penningvärde, eftersom det är den reala kalkylräntan som används vid nuvärdesberäkningarna)
A13: Övriga årliga kostnader | B13: Övriga kostnader som skiljer sig mellan alternativen. I övriga kostnader kan eventuella mervärden av en energieffektiviseringsåtgärd anges, om de är möjliga att sätta ett monetärt värde på. Eftersom man alltid jämför två olika alternativ kan det vara lättare att ange skillnaden mellan alternativen istället för de absoluta kostnaderna. Övriga kostnader kan också inkludera t.ex. eventuella miljökostnader. Här kan man också lägga in fasta energiavgifter (t.ex. fast elnätsavgift).
A14: Restvärde | B14: Eventuellt återstående ekonomiskt värde efter brukstiden.
A16: Resultat | B16: Förklaring
A17: Livscykelkostnad, LCC | B17: Huvudresultatet av LCC-kalkylen är den totala livscykelkostnaden för olika alternativ. Livscykelkostnaden beräknas som summan av nuvärdet av alla kostnader.
A18: Lönsamhetsbedömningar | B18: För lönsamhetsberäkningar (med återbetalningstid eller nuvärde av investering) antas Alt A vara ett grundalternativ, som motsvarar att man inte gör någonting eller att man investerar i konventionell eller befintlig utrustning.Sedan beräknas lönsamheten i att investera i Alt B eller C istället för att välja Alt A.
A19: Rak återbetalningstid | B19: Återbetalningstiden är den tid i år det tar innan den högre investeringen för Alt B resp C jämfört med Alt A har betalat igen sig i form av lägre driftkostnader. För att uträkningen ska ge ett meningsfullt resultat behöver därför Alt A vara det alternativ som har lägst investeringskostnad. Återbetalningstiden, som den beräknas i det här verktyget, tar ej hänsyn till följande: - kalkylränta - eventuell energiprisökning - restvärde - underhåll eller övriga kostnader angivna för enskilda år
A20: Nettonuvärde av investering | B20: Nettonuvärdet av en investering är ett lönsamhetsmått, som bygger på samma beräkningsprinciper som LCC-kalkylen. Nettonuvärdet av att investera i Alt B resp C istället för att välja Alt A motsvaras av minskningen i LCC-kostnad. En investering bedöms som lönsam om nettonuvärdet är större än noll.
